bitfinex-derivatives/quotes_BTCF0:USTF0_20250501
["timestamp","ask_amount","ask_price","bid_price","bid_amount"]
[1746096540513,0.93806167,95995.0,95994.0,0.122]
[1746096540714,0.57526167,95995.0,95994.0,0.222]
[1746096541422,0.57826167,95995.0,95994.0,0.222]
[1746096541818,0.57926167,95995.0,95994.0,0.222]
[1746096542120,0.57926167,95995.0,95994.0,0.122]
[1746096542324,0.57926167,95995.0,95994.0,0.222]
[1746096542619,0.58226167,95995.0,95994.0,0.222]
[1746096550221,0.58226167,95995.0,95994.0,0.1]
[1746096551526,0.2083259,95989.0,95988.0,0.10490099]
[1746096551724,0.2083389,95983.0,95982.0,0.19]
[1746096551921,0.2083389,95983.0,95982.0,0.29]
[1746096552122,0.2083389,95983.0,95982.0,0.412]
[1746096553326,0.2093389,95983.0,95982.0,0.412]
[1746096555022,0.2093389,95983.0,95982.0,0.594]
[1746096555630,0.2093389,95983.0,95982.0,0.494]
[1746096555828,0.2083389,95983.0,95982.0,0.494]
[1746096556033,0.2093389,95983.0,95982.0,0.494]
[1746096556329,0.2103389,95983.0,95982.0,0.494]
[1746096556629,0.2084106,95950.0,95949.0,0.36089634]
[1746096556824,0.19134384,95939.0,95938.0,0.02]
[1746096557021,0.55214384,95939.0,95938.0,0.02761634]
[1746096557226,0.65637584,95939.0,95938.0,0.24961634]
[1746096557527,0.65637584,95939.0,95938.0,0.33381634]
[1746096557723,0.2084366,95938.0,95937.0,6e-08]
[1746096557925,0.3126686,95938.0,95937.0,6e-08]
[1746096558627,0.2084801,95918.0,95917.0,0.1842]
[1746096558923,0.9230801,95918.0,95917.0,0.1842]
[1746096559129,0.9210801,95918.0,95917.0,0.1842]
[1746096559322,0.9210801,95918.0,95917.0,0.3062]
[1746096559520,0.9210801,95918.0,95917.0,0.122]
[1746096559726,1.02546662,95918.0,95917.0,0.05504603]
[1746096560022,1.03046662,95918.0,95917.0,0.05504603]
[1746096560423,1.10861062,95918.0,95917.0,0.15504603]
[1746096560722,1.10861062,95918.0,95917.0,0.05504603]
[1746096561128,0.2084844,95916.0,95915.0,1e-08]
[1746096561322,0.2084975,95910.0,95909.0,0.41703734]
[1746096561522,0.5692975,95910.0,95909.0,0.41703734]
[1746096562221,0.2085084,95905.0,95904.0,0.1928]
[1746096562421,0.6423884,95905.0,95904.0,0.1928]
[1746096562930,0.5683084,95905.0,95904.0,0.30071896]
[1746096563124,0.6413884,95905.0,95904.0,0.60911896]
[1746096563528,0.6504284,95905.0,95904.0,0.61011896]
[1746096564028,0.6504284,95905.0,95904.0,0.51011896]
[1746096564929,0.6504284,95905.0,95904.0,0.61011896]
[1746096565326,0.6503884,95905.0,95904.0,0.51011896]
[1746096566230,0.6504284,95905.0,95904.0,0.51011896]
[1746096566730,0.6504284,95905.0,95904.0,0.61011896]
[1746096567228,0.6504284,95905.0,95904.0,0.51011896]
[1746096567432,0.6504284,95905.0,95904.0,0.61011896]
[1746096568133,0.6504284,95905.0,95904.0,0.51011896]
[1746096568332,0.6504284,95905.0,95904.0,0.61011896]
[1746096568725,0.5773484,95905.0,95904.0,0.61011896]
[1746096569433,0.5773084,95905.0,95904.0,0.61011896]
[1746096569734,0.5773484,95905.0,95904.0,0.61011896]
[1746096570429,0.5743484,95905.0,95904.0,0.60911896]
[1746096571836,0.5723084,95905.0,95904.0,0.60911896]
[1746096572027,0.5703484,95905.0,95904.0,0.60911896]
[1746096572536,0.5683484,95905.0,95904.0,0.60911896]
[1746096572838,0.5693484,95905.0,95904.0,0.61111896]
[1746096573137,0.5683484,95905.0,95904.0,0.61011896]
[1746096573333,0.5693484,95905.0,95904.0,0.61311896]
[1746096574041,0.5693484,95905.0,95904.0,0.51411896]
[1746096574232,0.5693484,95905.0,95904.0,0.61411896]
[1746096574937,0.5693484,95905.0,95904.0,0.61111896]
[1746096575342,0.5703484,95905.0,95904.0,0.61111896]
[1746096575938,0.5703084,95905.0,95904.0,0.71111896]
[1746096576138,0.5703484,95905.0,95904.0,0.71111896]
[1746096576533,0.5703484,95905.0,95904.0,0.61111896]
[1746096576731,0.5703484,95905.0,95904.0,0.60911896]
[1746096578733,0.5713484,95905.0,95904.0,0.60911896]
[1746096582342,0.5713084,95905.0,95904.0,0.60911896]
[1746096582548,0.5713484,95905.0,95904.0,0.60911896]
[1746096584343,0.0521227,95913.0,95904.0,1.32419096]
[1746096584536,0.0521222,95914.0,95912.0,0.3608]
[1746096584736,0.3127332,95914.0,95913.0,0.573]
[1746096584937,0.260611,95914.0,95913.0,0.573]
[1746096585140,0.260651,95914.0,95913.0,0.79925999]
[1746096586144,0.621451,95914.0,95913.0,0.697]
[1746096586341,0.621451,95914.0,95913.0,0.4104]
[1746096586537,0.621451,95914.0,95913.0,0.5055]
[1746096587047,0.621451,95914.0,95913.0,0.6055]
[1746096587443,0.621451,95914.0,95913.0,0.5055]
[1746096588038,0.621451,95914.0,95913.0,0.6065]
[1746096588243,0.623451,95914.0,95913.0,0.6055]
[1746096588443,0.623411,95914.0,95913.0,0.6055]
[1746096588639,0.623451,95914.0,95913.0,0.6035]
[1746096588846,0.625451,95914.0,95913.0,0.6035]
[1746096590448,0.625411,95914.0,95913.0,0.6035]
[1746096590755,0.625451,95914.0,95913.0,0.7035]
[1746096591543,0.05688544,95926.0,95913.0,1.41855999]
[1746096591747,0.2605786,95926.0,95925.0,0.4608]
[1746096591951,0.2605786,95926.0,95925.0,0.5608]
[1746096592150,0.2606186,95926.0,95925.0,0.6828]
[1746096592653,0.26272081,95926.0,95925.0,0.6828]
[1746096593454,0.26172081,95926.0,95925.0,0.6828]
[1746096594353,0.26572081,95926.0,95925.0,0.6838]
[1746096594950,0.26172081,95926.0,95925.0,0.6828]
[1746096599059,0.26172081,95926.0,95925.0,0.322]
[1746096601463,0.26172081,95926.0,95925.0,0.222]
[1746096601960,0.26172081,95926.0,95925.0,0.122]
[1746096602159,0.2084888,95914.0,95913.0,0.3815]
[1746096602362,0.2084888,95914.0,95913.0,0.5815]
[1746096603151,0.2084888,95914.0,95913.0,0.7035]
[1746096603361,0.2084888,95914.0,95913.0,0.7055]
[1746096604165,0.2084888,95914.0,95913.0,0.5835]
[1746096604666,0.2084888,95914.0,95913.0,0.5855]
[1746096604855,0.2084888,95914.0,95913.0,0.5835]
[1746096605159,0.2084888,95914.0,95913.0,0.5825]
[1746096605371,0.2084888,95914.0,95913.0,0.5835]
[1746096605558,0.2085288,95914.0,95913.0,0.6835]
[1746096606155,0.2085288,95914.0,95913.0,0.6825]
[1746096606360,0.2084888,95914.0,95913.0,0.6835]
[1746096606559,0.2085288,95914.0,95913.0,0.6835]
[1746096607262,0.00010221,95926.0,95913.0,1.1663]
[1746096607567,0.20860491,95926.0,95925.0,0.4608]
[1746096607865,0.20856491,95926.0,95925.0,0.4608]
[1746096608056,0.20860491,95926.0,95925.0,0.4608]
[1746096608251,0.20860491,95926.0,95925.0,0.5828]
[1746096608658,0.0521105,95936.0,95925.0,0.787048]
[1746096608962,0.20765522,95934.0,95933.0,0.3608]
[1746096609157,0.20769522,95934.0,95933.0,0.5828]
[1746096609352,4e-05,95934.0,95933.0,0.5828]
[1746096609759,0.00012801,95934.0,95933.0,0.5828]
[1746096610462,0.0521065,95943.0,95933.0,0.78704]
[1746096610656,0.2084366,95938.0,95937.0,0.1]
[1746096611058,0.2084366,95938.0,95937.0,0.222]
[1746096611059,0.2084766,95938.0,95937.0,0.222]
[1746096611765,0.2084766,95938.0,95937.0,0.326236]
[1746096612068,0.2084766,95938.0,95937.0,0.328236]
[1746096612265,4e-05,95938.0,95937.0,0.329236]
[1746096612474,0.0521076,95941.0,95937.0,0.329236]
[1746096612659,0.0521076,95941.0,95938.0,0.4906]
[1746096612860,0.2084354,95939.0,95938.0,0.69483199]
[1746096613056,0.2084354,95939.0,95938.0,0.5906]
[1746096613261,0.0521067,95943.0,95938.0,0.81683199]
[1746096613465,0.2605325,95943.0,95942.0,0.3608]
[1746096613765,0.00155401,95955.0,95942.0,0.4608]
[1746096613962,0.2098997,95955.0,95954.0,0.3608]
[1746096614166,0.2098997,95955.0,95954.0,0.4608]
[1746096614167,0.0015,95955.0,95954.0,0.4608]
[1746096614468,0.0015,95955.0,95954.0,0.665016]
[1746096614764,0.0015,95955.0,95954.0,0.765016]
[1746096615070,0.00154,95955.0,95954.0,0.90335674]
[1746096615261,0.0520924,95969.0,95954.0,0.90335674]
[1746096615464,0.2083624,95973.0,95967.0,0.3608]
[1746096615771,0.2083671,95971.0,95968.0,0.57]
[1746096615966,0.20842151,95970.0,95968.0,0.67]
[1746096616170,5.401e-05,95970.0,95968.0,0.792]
[1746096616365,0.001,95976.0,95968.0,0.792]
[1746096616564,0.001,95976.0,95975.0,0.3608]
[1746096616767,4e-05,95976.0,95975.0,0.6608]
[1746096616962,0.2083541,95976.0,95975.0,0.76499199]
[1746096617274,0.2083941,95976.0,95975.0,0.88699199]
[1746096617463,0.00155401,95990.0,95975.0,0.88699199]
[1746096617464,0.00155401,95990.0,95975.0,0.99118524]
[1746096617663,0.00155401,95990.0,95989.0,0.3608]
[1746096617870,0.0015,95990.0,95989.0,1.1346]
[1746096618171,0.00154,95990.0,95989.0,1.3566]
[1746096618366,0.0015,95990.0,95989.0,1.3566]
[1746096618572,0.00154,95990.0,95989.0,1.3566]
[1746096618763,0.00854,95990.0,95989.0,1.3576]
[1746096618969,0.01554,95990.0,95989.0,1.3576]
[1746096619168,0.01554,95990.0,95989.0,1.46178]
[1746096619472,0.1969,95998.0,95989.0,1.46178]
[1746096619473,0.2081269,96007.0,95989.0,1.71178]
[1746096619670,0.17863101,96025.0,96007.0,0.2082868]
[1746096619859,0.2082348,96031.0,96030.0,0.1]
[1746096620062,0.2082348,96031.0,96030.0,0.2]
[1746096620463,0.39515013,96035.0,96030.0,0.2]
[1746096620674,0.208233,96032.0,96031.0,0.1984]
[1746096621069,0.0520549,96038.0,96031.0,0.2984]
[1746096621270,0.2082326,96032.0,96031.0,0.2984]
[1746096621472,0.2082326,96032.0,96031.0,0.30630451]
[1746096622470,0.2152326,96032.0,96031.0,0.30630451]
[1746096622674,0.007,96032.0,96031.0,0.49050451]
[1746096623069,0.00704,96032.0,96031.0,0.49050451]
[1746096623467,0.00904,96032.0,96031.0,0.49050451]
[1746096623772,0.001,96036.0,96031.0,0.59463651]
[1746096623975,0.25,96043.0,96035.0,0.5608]
[1746096624170,0.25,96043.0,96040.0,0.6608]
[1746096624363,0.25,96043.0,96041.0,0.4815]
[1746096624564,0.24483583,96043.0,96041.0,0.4815]
[1746096624976,0.23959166,96043.0,96041.0,0.58561999]
[1746096625277,0.23963166,96043.0,96041.0,0.4815]
[1746096625476,0.23438749,96043.0,96041.0,0.4815]
[1746096625675,0.23442749,96043.0,96041.0,0.4815]
[1746096625975,0.22922332,96043.0,96041.0,0.4815]
[1746096626172,0.22401915,96043.0,96041.0,0.4815]
[1746096626573,0.21881498,96043.0,96041.0,0.4815]
[1746096626982,0.21361081,96043.0,96041.0,0.4815]
[1746096627171,0.21661081,96043.0,96041.0,0.4815]
[1746096627372,0.21140664,96043.0,96041.0,0.4815]
[1746096627978,0.20620247,96043.0,96041.0,0.4815]
[1746096628165,0.2009983,96043.0,96041.0,0.4815]
[1746096628366,0.2009983,96043.0,96041.0,0.4825]
[1746096628574,0.1957948,96043.0,96041.0,0.4825]
[1746096629178,0.1905913,96043.0,96041.0,0.4825]
[1746096629571,0.1853878,96043.0,96041.0,0.4825]
[1746096629770,0.3623,96095.0,96042.0,0.2082411]
[1746096629976,0.2601501,96084.0,96083.0,0.3608]
[1746096630175,0.2081437,96073.0,96072.0,0.3608]
[1746096630378,0.2081578,96067.0,96064.0,0.5833]
[1746096630575,0.3865,96066.0,96064.0,0.5833]
[1746096630773,0.3865,96066.0,96064.0,0.6833]
[1746096631167,0.5085,96066.0,96064.0,0.6833]
[1746096631370,0.0520296,96085.0,96065.0,0.564896]
[1746096631577,0.1,96100.0,96082.0,0.2081242]
[1746096631768,0.2080874,96099.0,96098.0,0.4608]
[1746096632172,0.3301274,96099.0,96098.0,0.4608]
[1746096632578,0.3301274,96099.0,96098.0,0.47711945]
[1746096633374,0.12204,96099.0,96098.0,0.47711945]
[1746096633575,0.3331274,96099.0,96098.0,0.57711945]
[1746096633773,0.12504,96099.0,96098.0,0.68886763]
[1746096633975,0.1198365,96099.0,96098.0,0.94560763]
[1746096634279,0.3279639,96099.0,96098.0,0.94560763]
[1746096634487,0.7107239,96099.0,96098.0,0.48480763]
[1746096634787,0.7107639,96099.0,96098.0,0.48480763]
[1746096635382,0.7107639,96099.0,96098.0,0.12400763]
[1746096636287,0.7077639,96099.0,96098.0,0.12400763]
[1746096636476,0.7107639,96099.0,96098.0,0.12400763]
[1746096637471,0.7107639,96099.0,96084.0,0.3608]
[1746096637472,0.8567365,96099.0,96084.0,0.3608]
[1746096637677,0.2081178,96085.0,96084.0,0.3608]
[1746096637877,0.2081178,96085.0,96084.0,0.4608]
[1746096638191,0.3301178,96085.0,96084.0,0.4608]
[1746096638479,0.3301178,96085.0,96084.0,0.4638]
[1746096638684,0.3301178,96085.0,96084.0,0.3638]
[1746096638685,0.7149178,96085.0,96084.0,0.3638]
[1746096639076,0.7149178,96085.0,96084.0,0.38046831]
[1746096639386,0.7149178,96085.0,96084.0,0.38815017]
[1746096639980,0.7149178,96085.0,96084.0,0.12735017]
[1746096640179,0.7159178,96085.0,96084.0,0.02735017]
[1746096640387,0.7159178,96085.0,96084.0,0.12735017]
[1746096642075,0.5220578,96085.0,96084.0,0.12735017]
[1746096642282,0.5220578,96085.0,96084.0,0.61555017]
[1746096647384,0.5220578,96085.0,96084.0,0.51555017]
[1746096647986,0.5220578,96085.0,96084.0,0.31885017]
[1746096648174,0.5220578,96085.0,96084.0,0.12735017]
[1746096649791,0.5210578,96085.0,96084.0,0.12735017]
[1746096651293,0.5210578,96085.0,96084.0,0.32585017]
[1746096651991,0.5210578,96085.0,96084.0,0.32485017]
[1746096652191,0.5210578,96085.0,96084.0,0.04513986]
[1746096652387,0.2081589,96066.0,96061.0,0.1985]
[1746096652690,0.2081589,96066.0,96065.0,0.02417477]
[1746096652893,0.2081589,96066.0,96065.0,0.00104096]
[1746096653077,0.2081589,96066.0,96065.0,0.10104096]
[1746096653277,0.6946589,96066.0,96065.0,0.00104096]
[1746096653477,0.68685358,96066.0,96065.0,0.00429317]
[1746096653881,0.68685358,96066.0,96065.0,0.00829317]
[1746096654282,0.67384459,96066.0,96065.0,0.01961105]
[1746096654483,0.2081633,96064.0,96056.0,0.3608]
[1746096654679,0.2081633,96064.0,96063.0,0.00954074]
[1746096655287,0.3301633,96064.0,96063.0,0.00954074]
[1746096655489,0.3301633,96064.0,96063.0,0.02465881]
[1746096655787,0.3301633,96064.0,96063.0,0.00156138]
[1746096656994,0.3311633,96064.0,96063.0,0.01705619]
[1746096657184,0.3311633,96064.0,96063.0,0.00156138]
[1746096658188,0.3311633,96064.0,96063.0,0.00947731]
[1746096661095,0.3321633,96064.0,96063.0,0.00947731]
[1746096661396,0.3321633,96064.0,96063.0,0.19067731]
[1746096661598,0.3331633,96064.0,96063.0,0.19067731]
[1746096662498,0.3341633,96064.0,96063.0,0.19067731]
[1746096663090,0.3341633,96064.0,96063.0,0.37177731]
[1746096663594,0.3321633,96064.0,96063.0,0.37177731]
[1746096663792,0.3331633,96064.0,96063.0,0.37177731]
[1746096663984,0.32535753,96064.0,96063.0,0.37177731]
[1746096664188,0.32535753,96064.0,96063.0,0.19067731]
[1746096664391,0.2081958,96049.0,96048.0,0.1913]
[1746096664707,0.2081958,96049.0,96036.0,0.21719947]
[1746096664708,0.2082218,96037.0,96036.0,0.21719947]
[1746096664886,0.2082218,96037.0,96036.0,0.31719947]
[1746096665085,0.31721065,96037.0,96036.0,0.41719947]
[1746096665797,0.31621065,96037.0,96036.0,0.1]
[1746096665999,0.31621065,96037.0,96036.0,0.29909494]
[1746096666300,0.19421065,96037.0,96036.0,0.29909494]
[1746096666485,0.19421065,96037.0,96036.0,0.2146014]
[1746096666890,0.19421065,96037.0,96036.0,0.2178545]
[1746096667195,0.31621065,96037.0,96036.0,0.2178545]
[1746096667397,0.31621065,96037.0,96036.0,0.2218545]
[1746096667700,0.67701065,96037.0,96036.0,0.2268545]
[1746096667999,0.31621065,96037.0,96036.0,0.5107545]
[1746096668196,0.31621065,96037.0,96036.0,0.5075014]
[1746096668401,0.11683613,96037.0,96036.0,0.8536294]
[1746096668603,0.03409252,96056.0,96036.0,0.8536294]
[1746096668785,0.2081936,96050.0,96049.0,0.3608]
[1746096668992,0.2081936,96050.0,96049.0,0.4608]
[1746096669192,4e-05,96056.0,96049.0,0.4608]
[1746096669400,0.2081914,96051.0,96050.0,0.37955231]
[1746096669597,0.20298753,96051.0,96050.0,0.47955231]
[1746096669797,0.20298753,96051.0,96050.0,0.4763]
[1746096669999,0.20298753,96051.0,96050.0,0.3763]
[1746096670396,0.19178366,96051.0,96050.0,0.4763]
[1746096670602,0.2081914,96051.0,96050.0,0.830412]
[1746096670804,0.20298753,96051.0,96050.0,0.680412]
[1746096670998,0.20298753,96051.0,96050.0,0.580412]
[1746096671206,0.19778366,96051.0,96050.0,0.581412]
[1746096671603,0.19257979,96051.0,96050.0,0.586412]
[1746096671803,0.19257979,96051.0,96050.0,0.776312]
[1746096672105,0.18737592,96051.0,96050.0,0.776312]
[1746096672406,0.18217205,96051.0,96050.0,0.776312]
[1746096672908,0.0520425,96061.0,96050.0,0.776312]
[1746096672909,0.02307943,96066.0,96051.0,0.1]
[1746096673103,0.02307943,96066.0,96050.0,0.776312]
[1746096673104,0.2601932,96068.0,96067.0,0.1]
[1746096673696,0.2602332,96068.0,96067.0,0.1]
[1746096674095,0.3822332,96068.0,96067.0,0.1]
[1746096674295,0.3822332,96068.0,96067.0,0.101]
[1746096674706,0.12204,96068.0,96067.0,0.206092]
[1746096674915,0.11683724,96068.0,96067.0,0.206092]
[1746096675095,0.09980787,96068.0,96067.0,0.306092]
[1746096675405,0.19518479,96071.0,96067.0,0.305092]
[1746096675600,0.18998203,96071.0,96067.0,0.202]
[1746096675905,0.18998203,96071.0,96068.0,0.104092]
[1746096676100,0.2081448,96073.0,96068.0,0.104092]
[1746096676297,0.2081402,96075.0,96069.0,0.204092]
[1746096676493,0.2081402,96075.0,96074.0,0.3608]
[1746096676701,0.2081402,96075.0,96074.0,0.6608]
[1746096676902,0.0520281,96088.0,96074.0,0.6608]
[1746096676903,0.0520308,96083.0,96074.0,0.6608]
[1746096677100,0.2081243,96082.0,96081.0,0.1]
[1746096677409,0.2081243,96082.0,96081.0,0.3]
[1746096678002,0.20032132,96082.0,96081.0,0.30325124]
[1746096678194,0.32232132,96082.0,96081.0,0.30425124]
[1746096679008,0.32232132,96082.0,96081.0,0.301]
[1746096679707,0.68312132,96082.0,96081.0,0.001]
[1746096679904,0.87032132,96082.0,96081.0,0.101]
[1746096681809,0.87032132,96082.0,96081.0,0.11600326]
[1746096682412,0.87032132,96082.0,96081.0,0.01600326]
[1746096682598,1.06272132,96082.0,96081.0,0.01600326]
[1746096682804,0.50952132,96082.0,96081.0,0.11600326]
[1746096683005,0.32236132,96082.0,96081.0,0.11600326]
[1746096683402,0.32232132,96082.0,96081.0,0.11600326]
[1746096683601,0.32236132,96082.0,96081.0,0.11600326]
[1746096683801,0.51016132,96082.0,96081.0,0.11600326]
[1746096686418,0.32236132,96082.0,96081.0,0.11600326]
[1746096689911,0.31455799,96082.0,96081.0,0.11925465]
[1746096690116,0.31455799,96082.0,96081.0,0.13463441]
[1746096690610,0.31455799,96082.0,96081.0,0.13463536]
[1746096691414,0.51145799,96082.0,96081.0,0.13463536]
[1746096692408,0.51145799,96082.0,96081.0,0.13455632]
[1746096692812,0.31455799,96082.0,96081.0,0.23455632]
[1746096694111,0.50995799,96082.0,96081.0,0.23455632]
[1746096694314,0.31455799,96082.0,96081.0,0.23455632]
[1746096695019,0.50995799,96082.0,96081.0,0.23455632]
[1746096695205,0.90135799,96082.0,96081.0,0.13455632]
[1746096696018,0.90135799,96082.0,96081.0,0.13485336]
[1746096697319,0.2081784,96057.0,96049.0,0.07152]
[1746096697521,0.2081784,96057.0,96056.0,0.6158]
[1746096697825,0.2081784,96057.0,96056.0,0.73088897]
[1746096697826,0.19517077,96057.0,96056.0,0.73088897]
[1746096698010,0.19517077,96057.0,96056.0,0.31508897]
[1746096698209,0.31717077,96057.0,96056.0,0.31508897]
[1746096698720,0.31717077,96057.0,96056.0,0.67948897]
[1746096699019,0.31717077,96057.0,96056.0,0.68448897]
[1746096700016,0.31717077,96057.0,96056.0,0.69048897]
[1746096700322,0.29687844,96057.0,96056.0,0.69048897]
[1746096700524,0.29687844,96057.0,96056.0,0.68548897]
[1746096700818,0.29687844,96057.0,96056.0,0.68748897]
[1746096701018,0.29687844,96057.0,96056.0,0.68348897]
[1746096701515,0.29687844,96057.0,96056.0,0.68148897]
[1746096701723,0.29687844,96057.0,96056.0,0.68348897]
[1746096703211,0.27980542,96057.0,96056.0,0.68248897]
[1746096703526,0.27980542,96057.0,96056.0,0.11808897]
[1746096703714,0.46920542,96057.0,96056.0,0.11808897]
[1746096705017,0.46920542,96057.0,96056.0,0.01808897]
[1746096705420,0.46920542,96057.0,96056.0,0.01708897]
[1746096705619,0.47020542,96057.0,96056.0,0.01708897]
[1746096705819,0.47020542,96057.0,96056.0,0.11508897]
[1746096706220,0.46920542,96057.0,96056.0,0.11508897]
[1746096706424,0.47120542,96057.0,96056.0,0.11508897]
[1746096706617,0.47320542,96057.0,96056.0,0.01508897]
[1746096706817,0.47320542,96057.0,96056.0,0.1]
[1746096707023,0.47220542,96057.0,96056.0,0.1]
[1746096707224,0.47420542,96057.0,96056.0,0.1]
[1746096707424,0.65420542,96057.0,96056.0,0.1]
[1746096708119,0.65320542,96057.0,96056.0,0.1]
[1746096709226,0.65220542,96057.0,96056.0,0.1]
[1746096709421,0.65220542,96057.0,96056.0,0.13059391]
[1746096709627,0.65220542,96057.0,96056.0,0.13384629]
[1746096709821,0.65020542,96057.0,96056.0,0.13374754]
[1746096710023,0.28280542,96057.0,96056.0,0.13374754]
[1746096710228,0.124,96057.0,96056.0,0.80724754]
[1746096710433,0.3332184,96057.0,96056.0,0.80724754]
[1746096710620,0.32020993,96057.0,96056.0,0.80724754]
[1746096711330,0.31920993,96057.0,96056.0,0.80724754]
[1746096711630,0.31920993,96057.0,96056.0,0.81063263]
[1746096712132,0.31720993,96057.0,96056.0,0.81163263]
[1746096712834,0.31720993,96057.0,96056.0,0.81263263]
[1746096713035,0.31720993,96057.0,96056.0,0.81163263]
[1746096713521,0.31720993,96057.0,96056.0,0.80963263]
[1746096713725,0.31720993,96057.0,96056.0,0.81163263]
[1746096715033,0.31720993,96057.0,96056.0,1.17243263]
[1746096715225,0.31720993,96057.0,96056.0,1.17255385]
[1746096717137,0.10903153,96057.0,96056.0,1.17255385]
[1746096717321,0.0520393,96067.0,96056.0,1.48076324]
[1746096717638,0.24826371,96067.0,96066.0,0.3608]
[1746096717829,0.052043,96060.0,96057.0,0.00325238]
[1746096718030,0.2081741,96059.0,96058.0,0.38445208]
[1746096718331,0.2081741,96059.0,96058.0,0.38770531]
[1746096718927,0.2081741,96059.0,96058.0,0.38741068]
[1746096719237,0.2081741,96059.0,96058.0,0.38841068]
[1746096719434,0.2081741,96059.0,96058.0,0.37305238]
[1746096719735,0.19516627,96059.0,96058.0,0.37305238]
[1746096720134,0.31716627,96059.0,96058.0,0.37305238]
[1746096720534,0.31716627,96059.0,96058.0,0.37605238]
[1746096721038,0.30936162,96059.0,96058.0,0.37605238]
[1746096721238,0.30936162,96059.0,96058.0,0.37505238]
[1746096721430,0.30936162,96059.0,96058.0,0.37705238]
[1746096722235,0.30936162,96059.0,96058.0,0.3728]
[1746096722632,0.30936162,96059.0,96058.0,0.3718]
[1746096723326,0.30936162,96059.0,96058.0,0.3698]
[1746096723527,0.30936162,96059.0,96058.0,0.3718]
[1746096723839,0.30936162,96059.0,96058.0,0.4718]
[1746096725743,0.30936162,96059.0,96058.0,0.3718]
[1746096725933,0.30936162,96059.0,96058.0,0.003]
[1746096727032,0.30936162,96059.0,96058.0,0.001]
[1746096727535,0.2081784,96057.0,96056.0,0.01515779]
[1746096727842,0.2081784,96057.0,96056.0,0.1966]
[1746096728242,0.3301784,96057.0,96056.0,0.1966]
[1746096729242,0.3311784,96057.0,96056.0,0.2966]
[1746096729643,0.5162784,96057.0,96056.0,0.2966]
[1746096730446,0.5162784,96057.0,96056.0,0.1]
[1746096730751,0.2081936,96050.0,96049.0,0.29061052]
[1746096731045,0.19518366,96050.0,96049.0,0.29061052]
[1746096731245,0.19518366,96050.0,96049.0,0.02777751]
[1746096731441,0.2081979,96048.0,96047.0,0.26283301]
[1746096731643,0.2081979,96048.0,96047.0,0.72363301]
[1746096731837,0.2081979,96048.0,96047.0,0.36283301]
[1746096732240,0.3291979,96048.0,96047.0,0.36283301]
[1746096732846,0.3291979,96048.0,96047.0,0.39173741]
[1746096733045,0.5234979,96048.0,96047.0,0.58303741]
[1746096733247,0.5234979,96048.0,96047.0,0.58103741]
[1746096734440,0.5244979,96048.0,96047.0,0.58103741]
[1746096734747,0.5244979,96048.0,96047.0,0.3182044]
[1746096735539,0.5234979,96048.0,96047.0,0.3182044]
[1746096735749,0.5254979,96048.0,96047.0,0.1269044]
[1746096735940,0.5254979,96048.0,96047.0,0.0269044]
[1746096736141,0.2082088,96043.0,96039.0,0.1956]
[1746096737041,0.5771088,96043.0,96039.0,0.1956]
[1746096737250,0.6991088,96043.0,96042.0,0.02866116]
[1746096737441,0.7001088,96043.0,96042.0,0.00156181]
[1746096738146,0.7001088,96043.0,96042.0,0.03019672]
[1746096738338,0.7001088,96043.0,96042.0,0.00256181]
[1746096738740,0.7001088,96043.0,96042.0,0.03062791]
[1746096738940,0.7001088,96043.0,96042.0,0.00256181]
[1746096739741,0.7001088,96043.0,96042.0,0.03032692]
[1746096740458,0.7001088,96043.0,96042.0,0.13032692]
[1746096740853,0.7001088,96043.0,96042.0,0.03032692]
[1746096741350,0.7001088,96043.0,96042.0,0.13032692]
[1746096741553,0.7001088,96043.0,96042.0,0.03032692]
[1746096741741,0.7001088,96043.0,96042.0,0.13032692]
[1746096742743,0.7001088,96043.0,96042.0,0.03032692]
[1746096743142,0.7001088,96043.0,96042.0,0.13032692]
[1746096744648,0.7001088,96043.0,96042.0,0.03032692]
[1746096744954,0.2082218,96037.0,96032.0,9.729e-05]
[1746096745155,0.2082239,96036.0,96032.0,9.729e-05]
[1746096745346,0.5879239,96036.0,96032.0,9.729e-05]
[1746096745750,0.5879239,96036.0,96033.0,0.3972]
[1746096746051,0.5859239,96036.0,96033.0,0.3972]
[1746096746258,0.7079239,96036.0,96035.0,0.02786787]
[1746096746460,0.7079239,96036.0,96035.0,0.0357652]
[1746096747551,0.7069239,96036.0,96035.0,0.0357652]
[1746096747756,0.7069239,96036.0,96035.0,0.0367652]
[1746096748148,0.0520577,96033.0,96023.0,0.1964]
[1746096748348,0.5680435,96027.0,96023.0,0.1964]
[1746096748656,0.5680435,96027.0,96026.0,0.02870736]
[1746096748852,0.5680435,96027.0,96026.0,0.00156209]
[1746096749248,1.07013735,96027.0,96026.0,0.00356209]
[1746096749448,0.2082673,96016.0,96015.0,0.3751]
[1746096749649,0.2082673,96016.0,96015.0,0.38309415]
[1746096749851,0.5690673,96016.0,96015.0,0.03612841]
[1746096750047,0.2082782,96011.0,96010.0,0.26283301]
[1746096750849,5.401e-05,96018.0,96015.0,0.1]
[1746096751151,0.20547474,96027.0,96026.0,0.002]
[1746096751355,0.20547474,96027.0,96026.0,0.102]
[1746096751656,0.20551474,96027.0,96026.0,0.1]
[1746096751856,0.20547474,96027.0,96026.0,0.2]
[1746096752051,0.20551474,96027.0,96026.0,0.322]
[1746096752254,0.20551474,96027.0,96026.0,0.7176]
[1746096752754,0.20751474,96027.0,96026.0,0.7176]
[1746096753160,0.20951474,96027.0,96026.0,0.7176]
[1746096754960,0.20751474,96027.0,96026.0,0.7176]
[1746096755158,0.20651474,96027.0,96026.0,0.7176]
[1746096757261,0.20651474,96027.0,96026.0,0.821736]
[1746096757461,0.20651474,96027.0,96026.0,0.921736]
[1746096757662,0.0520539,96040.0,96026.0,0.921736]
[1746096757861,0.0520475,96052.0,96039.0,0.3608]
[1746096758061,0.0520475,96052.0,96050.0,0.3608]
[1746096758062,0.2081914,96051.0,96050.0,0.3608]
[1746096758252,0.2081914,96051.0,96050.0,0.4608]
[1746096758655,0.2082314,96051.0,96050.0,0.4608]
[1746096759053,0.2122314,96051.0,96050.0,0.4608]
[1746096759259,0.3342314,96051.0,96050.0,0.4608]
[1746096759763,0.3322314,96051.0,96050.0,0.4608]
[1746096760458,0.3321914,96051.0,96050.0,0.5608]
[1746096760659,0.3322314,96051.0,96050.0,0.5608]
[1746096760858,0.3332314,96051.0,96050.0,0.5608]
[1746096761165,0.2112314,96051.0,96050.0,0.5608]
[1746096761361,0.2092314,96051.0,96050.0,0.4608]
[1746096761562,0.2112314,96051.0,96050.0,0.4608]